bitfinex/quotes_ETHUSD_20240819
["timestamp","ask_amount","ask_price","bid_price","bid_amount"]
[1724087958972,3.86751,2585.7,2585.3,3.94109796]
[1724087959212,3.86751,2585.7,2585.3,0.07315796]
[1724087959213,7.73507,2585.7,2585.3,0.07315796]
[1724087959511,4.882757,2585.7,2585.3,0.07315796]
[1724087959813,3.86791,2585.4,2584.9,2.4426]
[1724087960014,3.86804,2585.3,2584.9,6.31121]
[1724087960509,3.86804,2585.3,2585.0,0.07336906]
[1724087960693,3.86788,2585.4,2585.0,0.07336906]
[1724087961015,3.86788,2585.4,2585.0,3.94181906]
[1724087961582,3.86807,2585.3,2585.0,0.07336906]
[1724087964382,3.86788,2585.4,2585.0,3.94181906]
[1724087965272,7.73583,2585.4,2585.0,3.94181906]
[1724087965474,3.86788,2585.4,2585.0,3.94181906]
[1724087965719,3.86788,2585.4,2585.0,3.94176906]
[1724087965896,3.86775,2585.5,2585.0,7.81012906]
[1724087966101,3.86775,2585.5,2585.0,3.94172906]
[1724087967312,3.86775,2585.5,2585.0,7.81012906]
[1724087967616,3.86775,2585.5,2585.0,3.94172906]
[1724087968117,3.86787,2585.4,2585.0,3.94172906]
[1724087968769,6.17922,2585.3,2585.0,0.07336906]
[1724087969385,3.86819,2585.2,2585.0,0.07336906]
[1724087969620,3.86819,2585.2,2584.8,3.86875]
[1724087970077,3.86819,2585.2,2584.9,0.0735406]
[1724087970814,3.86802,2585.3,2584.9,3.9421506]
[1724087971267,6.36269,2585.5,2585.0,3.86847]
[1724087971473,3.86789,2585.4,2585.1,0.07363959]
[1724087972218,3.86789,2585.4,2584.9,3.8686]
[1724087972420,3.86789,2585.4,2585.2,0.07363959]
[1724087972621,3.86789,2585.4,2584.9,3.8686]
[1724087972821,3.86789,2585.4,2585.3,0.07363959]
[1724087972991,3.86789,2585.4,2584.9,3.8686]
[1724087973414,3.86789,2585.4,2585.0,0.07363959]
[1724087973619,4.852,2585.6,2585.0,2.50493959]
[1724087973916,3.86804,2585.3,2585.0,2.50493959]
[1724087977256,3.86817,2585.2,2585.0,2.50493959]
[1724087979130,3.86817,2585.2,2585.0,0.07363959]
[1724087979314,3.86855,2585.0,2584.6,2.3649]
[1724087979639,3.86855,2585.0,2584.7,0.07363299]
[1724087980523,6.29025,2585.3,2584.7,3.94254299]
[1724087980524,3.86832,2585.1,2584.7,3.94254299]
[1724087982960,7.73674,2585.1,2584.7,3.94254299]
[1724087983261,3.86832,2585.1,2584.7,3.94254299]
[1724087983761,3.8682,2585.2,2584.7,8.82903729]
[1724087984272,3.8682,2585.2,2584.7,4.96012729]
[1724087985116,2.01846629,2585.3,2584.9,3.86855]
[1724087985361,13.24643629,2585.4,2585.0,0.07370555]
[1724087985566,13.24643629,2585.4,2585.0,2.38640555]
[1724087985766,13.24643629,2585.4,2585.0,6.25485555]
[1724087985920,9.37846629,2585.4,2585.1,3.8683]
[1724087986116,7.36,2585.4,2585.1,3.94199235]
[1724087986361,7.36,2585.4,2585.3,2.4237]
[1724087986765,7.36,2585.4,2585.3,2.49739235]
[1724087987056,7.36,2585.4,2585.3,0.07369235]
[1724087988166,7.36,2585.4,2584.6,7.91398]
[1724087988167,11.22787,2585.4,2584.8,2.3391]
[1724087988461,13.24633629,2585.4,2584.9,0.07369235]
[1724087988664,2.01846629,2585.3,2584.9,0.07369235]
[1724087989293,3.86821,2585.2,2584.9,0.07369235]
[1724087989449,5.88662629,2585.3,2584.9,0.07369235]
[1724087989638,5.88662629,2585.3,2584.9,3.94230235]
[1724087989639,2.01846629,2585.3,2584.9,3.94230235]
[1724087989958,2.01846629,2585.3,2584.9,4.57044259]
[1724087990291,5.88648629,2585.3,2584.9,3.94230235]
[1724087990484,2.01846629,2585.3,2584.9,7.81085235]
[1724087990664,9.37846629,2585.4,2585.1,3.86831]
[1724087991047,9.37846629,2585.4,2585.2,0.07357359]
[1724087991660,9.37846629,2585.4,2585.3,3.86802]
[1724087991864,7.36,2585.4,2585.3,1.01468636]
[1724087992101,7.36,2585.4,2585.3,0.07357359]
[1724087992457,7.36,2585.4,2585.2,6.20521]
[1724087992663,7.36,2585.4,2585.3,3.94159359]
[1724087994167,7.36,2585.4,2585.3,0.07357359]
[1724087995440,2.01846629,2585.5,2585.3,3.94159359]
[1724087997233,2.01846629,2585.5,2585.4,3.86787]
[1724087997791,2.01846629,2585.5,2585.4,3.94121929]
[1724087997993,2.03042875,2585.5,2585.4,7.80908929]
[1724087998412,2.03042875,2585.6,2585.5,6.23002]
[1724087998691,2.03042875,2585.8,2585.6,3.86757]
[1724087999018,2.03042875,2585.9,2585.7,3.86742]
[1724087999219,2.03042875,2585.9,2585.8,6.22957]
[1724087999447,2.03042875,2586.1,2585.9,3.86712]
[1724087999740,2.03042875,2586.1,2586.0,0.07315797]
[1724088000258,23.38633,2586.5,2586.0,3.94012797]
[1724088000259,2.03042875,2586.2,2586.0,3.94012797]
[1724088000546,2.03042875,2586.2,2586.1,0.07292714]
[1724088000732,2.03042875,2586.2,2585.8,6.22942]
[1724088001074,2.02941427,2586.2,2585.9,0.07292714]
[1724088001360,2.02941638,2586.3,2585.9,0.07292714]
[1724088001657,3.86638,2586.4,2585.9,0.07292714]
[1724088001658,2.02941638,2586.2,2585.9,3.93999714]
[1724088002003,2.02941638,2586.2,2585.9,0.07292714]
[1724088002421,2.02784162,2586.2,2585.9,0.07292714]
[1724088002819,5.89437162,2586.3,2585.9,0.07292714]
[1724088003149,5.89458162,2586.2,2585.9,0.07292714]
[1724088003303,5.89458162,2586.2,2585.6,6.25446]
[1724088003304,3.86697,2586.0,2585.6,6.25446]
[1724088003500,3.86697,2586.0,2585.7,0.07277548]
[1724088003755,3.86697,2586.0,2585.4,3.86776]
[1724088003907,3.86712,2585.9,2585.8,0.07277548]
[1724088004107,5.89496162,2585.9,2585.3,6.25498]
[1724088004435,3.86732,2585.8,2585.4,0.07284141]
[1724088004618,6.87148978,2585.7,2585.4,0.07284141]
[1724088004825,6.87148978,2585.7,2585.2,7.73615]
[1724088004826,4.84364816,2585.7,2585.2,7.73615]
[1724088005026,3.86742,2585.7,2585.5,0.07284141]
[1724088005352,3.86742,2585.7,2585.6,0.07305244]
[1724088005506,3.86742,2585.7,2585.2,3.86806]
[1724088005850,2.02745779,2585.9,2585.5,3.86759]
[1724088006001,2.02745779,2585.9,2585.3,2.55265244]
[1724088006002,2.02745779,2585.9,2585.3,6.42057244]
[1724088006206,3.86729,2585.8,2585.6,0.07304585]
[1724088006508,2.02745779,2585.9,2585.4,3.86786]
[1724088006718,5.89443779,2586.0,2585.7,0.07304585]
[1724088006911,5.89443779,2586.0,2585.4,3.86786]
[1724088006912,2.02745779,2585.9,2585.4,3.86786]
[1724088007130,2.02745779,2585.9,2585.8,0.07274241]
[1724088007362,7.88463273,2586.0,2585.4,3.86786]
[1724088007514,5.89464779,2585.9,2585.8,0.07274241]
[1724088007714,5.89464779,2585.9,2585.4,3.86786]
[1724088007915,5.89464779,2585.9,2585.8,0.07274241]
[1724088008216,5.89464779,2585.9,2585.4,3.86786]
[1724088008417,5.89443779,2586.0,2585.5,3.86764]
[1724088008655,5.89443779,2586.0,2585.6,2.2666]
[1724088008834,2.02745779,2586.0,2585.6,6.13408]
[1724088009244,9.38745779,2586.1,2585.7,0.07274901]
[1724088009411,2.02745779,2586.0,2585.7,0.07274901]
[1724088010129,2.02682599,2586.0,2585.7,0.07274901]
[1724088010503,7.84906571,2586.0,2585.6,2.2666]
[1724088010645,3.86737,2585.8,2585.4,2.2666]
[1724088010845,9.76098599,2586.0,2585.7,0.07274901]
[1724088011076,5.89390599,2586.0,2585.5,3.86771]
[1724088011467,5.89390599,2586.0,2585.6,0.07274901]
[1724088011694,6.96390571,2586.0,2585.6,0.07274901]
[1724088011895,3.86712,2585.9,2585.6,0.07274901]
[1724088013399,2.02682599,2586.0,2585.6,0.07274901]
[1724088013599,2.02682599,2586.1,2585.8,3.8672]
[1724088013749,2.02682599,2586.2,2585.8,3.8672]
[1724088013951,5.89337599,2586.3,2585.9,0.07271603]
[1724088014228,5.89337599,2586.3,2585.8,3.8672]
[1724088014351,3.86669,2586.2,2585.8,3.8672]
[1724088014555,3.86669,2586.2,2585.9,0.07271603]
[1724088015063,5.89351599,2586.2,2585.9,0.07271603]
[1724088015291,3.86669,2586.2,2585.7,6.2905]
[1724088015599,3.86684,2586.1,2585.8,0.07271603]
[1724088015756,3.86705,2586.0,2585.8,0.07271603]
[1724088015949,3.86705,2586.0,2585.7,2.4231]
[1724088016150,3.86705,2586.0,2585.9,0.07271603]
[1724088016351,3.86705,2586.0,2585.7,2.4231]
[1724088016603,3.86705,2586.0,2585.9,0.07271603]
[1724088016899,5.89360599,2586.2,2585.7,6.29052]
[1724088016900,3.86678,2586.2,2585.7,6.29052]
[1724088017250,3.86678,2586.2,2585.9,0.07271603]
[1724088017497,3.86689,2586.1,2585.8,0.07259073]
[1724088017698,3.86689,2586.1,2585.7,6.29052]
[1724088018306,3.86678,2586.2,2585.8,0.07259073]
[1724088018513,3.86678,2586.2,2585.8,3.93979073]
[1724088018668,2.02682599,2586.3,2585.9,6.24511]
[1724088018996,2.02535482,2586.3,2585.9,6.31770073]
[1724088019307,13.25182482,2586.4,2585.9,6.24511]
[1724088019597,3.86652,2586.3,2585.9,6.24511]
[1724088020008,5.89182482,2586.4,2585.9,2.3781]
[1724088020009,3.86668,2586.2,2585.9,2.3781]
[1724088020291,7.73349,2586.2,2585.9,2.3781]
[1724088020465,7.73346,2586.2,2586.0,0.07259073]
[1724088020668,3.86668,2586.2,2585.7,6.1904]
[1724088021065,7.73348,2586.2,2585.8,0.07259073]
[1724088021262,3.86689,2586.1,2585.8,0.07259073]
[1724088021499,3.86689,2586.1,2585.7,6.19039]
[1724088021657,3.86689,2586.1,2585.9,0.07259073]
[1724088021862,3.86689,2586.1,2585.7,6.19039]
[1724088022067,3.86689,2586.1,2586.0,0.07259073]
[1724088022710,3.86689,2586.1,2585.7,6.19039]
[1724088023023,3.86689,2586.1,2586.0,0.07259073]
[1724088023163,3.86689,2586.1,2585.7,6.19039]
[1724088023359,3.86689,2586.1,2586.0,0.07259073]
[1724088023664,3.86689,2586.1,2585.7,6.19039]
[1724088023898,3.86669,2586.2,2586.0,0.07259073]
[1724088024099,2.02509226,2586.4,2586.1,3.86676]
[1724088024306,4.87451072,2586.7,2586.1,3.86676]
[1724088024307,5.89117226,2586.6,2586.2,2.2913]
[1724088024458,2.02509226,2586.6,2586.2,6.15797]
[1724088024665,5.89117226,2586.6,2586.2,6.23039588]
[1724088024908,2.02509226,2586.6,2586.2,6.23039588]
[1724088025104,3.86608,2586.6,2586.2,6.23039588]
[1724088025311,5.89117226,2586.6,2586.2,6.23039588]
[1724088025465,2.02454518,2586.6,2586.2,6.23039588]
[1724088025665,5.89047518,2586.7,2586.3,3.86644]
[1724088026109,5.89047518,2586.7,2586.4,0.0723072]
[1724088026913,5.89047518,2586.7,2586.2,6.15797]
[1724088027119,5.89047518,2586.7,2586.5,0.0723072]
[1724088027421,5.89047518,2586.7,2586.3,3.86652]
[1724088027618,5.89047518,2586.7,2586.6,0.0723072]
[1724088027790,5.89047518,2586.7,2586.3,3.86652]
[1724088028114,2.02436661,2586.7,2586.6,0.0723072]
[1724088028314,2.02436661,2586.7,2586.4,0.0723072]
[1724088028515,2.02436661,2586.7,2586.3,3.86646]
[1724088028707,2.02436661,2586.7,2586.5,0.0723072]
[1724088028907,2.02436661,2586.7,2586.3,3.86646]
[1724088029102,2.02436661,2586.7,2586.4,0.0723072]
[1724088030505,2.02436661,2586.8,2586.6,3.86599]
[1724088030711,2.02436661,2587.0,2586.7,3.93755073]
[1724088030894,2.02436661,2587.1,2586.7,4.49580507]
[1724088031092,2.02436661,2587.1,2586.8,0.07170073]
[1724088031334,2.02436661,2587.1,2586.7,3.86585]
[1724088031506,2.02436661,2587.1,2586.9,0.07170073]
[1724088031692,5.88961661,2587.2,2586.9,0.07170073]
[1724088031893,5.88961661,2587.2,2587.0,0.07170073]
[1724088032142,5.88961661,2587.2,2586.7,3.86585]
[1724088032344,5.88961661,2587.2,2587.1,0.07170073]
[1724088032547,5.88865355,2587.2,2586.8,3.86577]
[1724088032694,5.88865355,2587.2,2587.1,0.07170073]
[1724088033007,6.95061733,2587.2,2586.7,3.86591]
[1724088033205,5.88865355,2587.2,2587.1,0.07170073]
[1724088033410,5.88865355,2587.2,2586.7,3.86591]
[1724088033609,5.88865355,2587.2,2587.1,0.07170073]
[1724088033810,5.88865355,2587.2,2586.7,3.86591]
[1724088034334,3.86533,2587.1,2586.6,3.86593]
[1724088034536,3.86533,2587.1,2586.8,0.07170073]
[1724088034740,3.86533,2587.1,2586.6,7.7319]
[1724088034897,3.86533,2587.1,2586.9,0.07170073]
[1724088035398,3.86533,2587.1,2587.0,0.07170073]
[1724088035615,3.86533,2587.1,2586.7,3.86592]
[1724088035916,5.88859355,2587.2,2587.0,0.07170073]
[1724088036111,7.33705433,2587.2,2586.7,3.86592]
[1724088036406,5.88859355,2587.2,2587.1,0.07170073]
[1724088036611,5.88859355,2587.2,2586.7,3.86592]
[1724088036817,5.88802544,2587.2,2587.1,0.07170073]
[1724088037028,5.88802544,2587.2,2586.8,3.86577]
[1724088037246,2.02283544,2587.2,2587.1,0.07170073]
[1724088037467,2.02283544,2587.4,2587.0,3.86547]
[1724088037604,2.02283544,2587.5,2587.3,6.11793]
[1724088037801,2.02283544,2587.7,2587.3,6.11783]
[1724088038173,2.02283544,2587.7,2587.3,6.1178]
[1724088038301,13.24683544,2588.0,2587.5,3.86463]
[1724088038501,9.75089544,2588.0,2587.5,3.86463]
[1724088038701,3.864,2588.0,2587.5,3.86463]
[1724088039027,7.72812,2588.0,2587.5,3.86463]
[1724088039213,3.864,2588.0,2587.5,7.72929]
[1724088039416,24.14091099,2588.1,2587.7,3.86443]
[1724088039417,21.79141099,2588.1,2587.7,3.86443]
[1724088039616,3.86379,2588.2,2587.7,3.86435]
[1724088039814,9.38141099,2588.3,2588.0,3.86387]
[1724088040056,7.36,2588.3,2588.0,3.86398]
[1724088040359,7.36,2588.3,2588.1,0.07098262]
[1724088040495,7.72663,2588.5,2587.9,6.12643]
[1724088040722,7.72663,2588.5,2588.0,3.93486702]
[1724088040723,4.635923,2588.5,2588.0,3.93486702]
[1724088041627,4.635923,2588.5,2588.0,3.86397]
[1724088041876,4.635923,2588.5,2588.1,0.07007355]
[1724088042028,7.72661,2588.5,2588.1,0.07007355]
[1724088042232,3.86326,2588.5,2588.1,0.07007355]
[1724088042467,3.86326,2588.5,2588.1,3.93389355]
[1724088042649,7.36,2588.8,2588.3,3.86351]
[1724088042650,11.22286,2588.8,2588.3,3.86351]
[1724088042979,14.17828507,2589.0,2588.4,2.2539]
[1724088042980,12.16,2589.0,2588.4,2.2539]
[1724088043189,7.36,2589.1,2588.4,2.32372337]
[1724088043334,3.86277,2588.9,2588.4,2.32372337]
[1724088043757,3.86277,2588.9,2588.4,6.18708337]
[1724088044086,7.36,2589.1,2588.7,3.8628]
[1724088044231,11.2218,2589.5,2588.8,0.38628]
[1724088044430,11.2218,2589.5,2589.0,3.8624]
[1724088044431,7.36,2589.5,2589.0,3.8624]
[1724088044632,3.86175,2589.5,2589.1,2.4212]
[1724088044826,3.86199,2589.4,2589.1,2.4212]
[1724088045031,4.634364,2589.4,2589.1,2.4212]
[1724088045345,4.634364,2589.4,2589.2,0.06952719]
[1724088045962,4.634364,2589.4,2588.8,10.15459]
[1724088046146,3.86175,2589.5,2589.3,0.06952719]
[1724088046672,3.86175,2589.5,2589.4,0.06952719]
[1724088047079,3.86175,2589.5,2589.0,3.86243]
[1724088047232,3.86175,2589.5,2589.4,0.06952719]
[1724088047435,7.7231,2589.7,2589.1,3.86233]
[1724088047677,9.378733,2589.7,2589.1,3.86233]
[1724088047894,7.36,2589.8,2588.8,2.4292]
[1724088047895,7.36,2589.8,2589.3,3.86196]
[1724088048543,7.36,2589.8,2589.4,0.06897461]
[1724088049980,11.22132,2589.8,2589.4,0.06897461]
[1724088050188,3.86146,2589.7,2589.4,0.06897461]
[1724088050480,7.36,2589.8,2589.4,0.06897461]
[1724088050687,7.36,2589.8,2589.3,3.86202]
[1724088050979,3.86123,2589.9,2589.4,2.487]
[1724088051179,23.38095,2590.1,2589.5,3.8617]
[1724088051180,3.86103,2590.0,2589.5,3.8617]
[1724088051332,11.22095,2590.1,2589.5,3.8617]
[1724088051531,3.86108,2590.0,2589.5,3.8617]
[1724088051880,3.86122,2589.9,2589.6,0.06756006]
[1724088052342,3.86122,2589.9,2589.4,2.487]
[1724088052343,3.86122,2589.9,2589.4,6.34888]
[1724088052550,3.86122,2589.9,2589.7,0.06742857]
[1724088052727,3.86122,2589.9,2589.4,2.487]
[1724088052934,3.86122,2589.9,2589.4,6.34889]
[1724088053163,3.86122,2589.9,2589.5,0.0673694]
[1724088054276,3.86108,2590.0,2589.5,3.9290994]
[1724088054277,3.861,2590.0,2589.5,3.9290994]
[1724088054848,3.86076,2590.2,2589.5,3.9290294]
[1724088055043,3.86059,2590.3,2589.8,2.487]
[1724088055345,3.8608,2590.2,2589.8,2.487]
[1724088055775,3.8608,2590.2,2589.9,0.0673431]
[1724088056406,3.86059,2590.3,2589.9,0.0673431]
[1724088057080,3.86025,2590.5,2589.9,0.0673431]
[1724088057304,3.86025,2590.5,2589.9,0.70889941]
[1724088057459,4.00972,2590.8,2590.2,6.30666]
[1724088057662,0.1499,2590.8,2590.4,3.86039]
[1724088057973,0.1499,2590.8,2590.6,2.446]
[1724088058426,0.1499,2590.8,2590.7,10.16592]
[1724088058710,0.1499,2590.8,2590.7,9.37307305]
[1724088058893,0.1499,2590.8,2590.7,5.51311305]
[1724088059101,0.1499,2590.8,2590.7,2.51311305]
[1724088060360,0.1499,2590.8,2590.7,10.23303305]
[1724088061081,3.85823,2591.9,2591.0,2.446]
[1724088061280,3.85803,2592.0,2591.3,3.85904]
[1724088061620,0.124267,2592.2,2591.5,3.85865]
[1724088061821,3.981987,2592.2,2591.5,3.85865]
[1724088061970,3.982007,2592.2,2591.5,3.85865]
[1724088062167,0.124267,2592.2,2591.6,3.85861]
[1724088062483,0.124267,2592.2,2591.9,2.3884]
[1724088062681,0.124267,2592.2,2592.0,0.23884]
[1724088063211,0.124267,2592.2,2592.1,0.06550995]
[1724088063410,0.124267,2592.2,2592.1,2.45390995]
[1724088063735,0.124267,2592.2,2592.1,5.45390995]
[1724088064194,0.124267,2592.2,2592.1,9.31177995]
[1724088064402,0.124267,2592.2,2592.1,10.65265495]
[1724088065097,0.124267,2592.2,2592.1,2.45390995]
[1724088065534,0.124267,2592.2,2592.1,6.31177995]
[1724088065849,0.124267,2592.2,2592.1,10.16964995]
[1724088066187,0.0076421,2592.2,2592.1,10.16964995]
[1724088067130,0.0076421,2592.2,2592.1,13.16964995]
[1724088067331,0.0076421,2592.2,2592.1,14.48661495]
[1724088067841,0.00047004,2592.2,2592.1,18.53161495]
[1724088068182,0.00047004,2592.2,2592.1,22.38948495]
[1724088068381,0.00047004,2592.2,2592.1,22.93948495]
[1724088068834,4.00579,2593.5,2593.0,2.2589]
[1724088068985,0.1499,2593.5,2593.0,6.1154]
[1724088069187,0.1499,2593.5,2593.1,3.91937973]
[1724088069497,0.1499,2593.5,2593.1,0.06300973]
[1724088069699,0.1499,2593.5,2593.3,3.85595]
[1724088069900,0.1499,2593.5,2593.1,0.06300973]
[1724088069901,4.00578,2593.5,2593.1,0.06300973]
[1724088070081,3.85609,2593.3,2592.8,3.0]
[1724088070280,3.85609,2593.3,2592.7,9.11579]
[1724088070482,4.00574,2593.5,2592.9,3.85659]
[1724088070728,4.00574,2593.5,2592.9,3.85657]
[1724088071196,3.85619,2593.3,2592.7,9.1158]
[1724088071337,3.85643,2593.1,2592.7,5.2589]
[1724088071535,3.85643,2593.1,2592.7,2.2589]
[1724088071970,3.85655,2593.0,2592.7,2.2589]
[1724088072292,3.8571,2592.7,2592.4,2.2995]
[1724088072475,3.8571,2592.7,2592.1,2.2995]
[1724088072634,3.85728,2592.5,2592.1,2.2995]
[1724088073588,3.85713,2592.6,2592.1,2.2995]
[1724088073741,3.8564,2593.1,2592.1,2.2995]
[1724088073936,3.85613,2593.3,2592.6,3.85704]
[1724088074568,3.85633,2593.2,2592.6,3.85704]
[1724088074851,3.85613,2593.3,2592.6,3.85704]
[1724088075178,3.85613,2593.3,2592.7,4.242594]
[1724088075355,3.85613,2593.3,2592.7,0.385704]
[1724088075876,3.85613,2593.3,2592.8,2.3633]
[1724088076579,3.85632,2593.2,2592.9,0.06291794]
[1724088076942,3.85612,2593.3,2592.9,0.06291794]
[1724088077187,3.85624,2593.2,2592.9,0.06291794]
[1724088077366,0.400602,2593.3,2592.6,2.4951]
[1724088077573,3.85681,2592.9,2592.6,2.4951]
[1724088077946,3.85632,2593.2,2592.6,2.4951]
[1724088078144,3.85632,2593.2,2592.6,3.85704]
[1724088078394,3.85632,2593.2,2592.3,3.0]
[1724088078395,0.1499,2593.5,2593.4,6.25744]
[1724088079065,0.1499,2593.5,2593.4,10.11338]
[1724088079598,0.124267,2594.8,2593.4,5.4015]
[1724088079780,7.832157,2594.8,2594.2,3.85461]
[1724088079944,4.00418,2594.6,2594.1,6.25638]
[1724088080150,4.00418,2594.6,2594.1,2.4015]
[1724088080397,4.00418,2594.6,2594.1,6.25639]
[1724088080597,4.00418,2594.6,2594.2,0.06223617]
[1724088080910,0.1499,2594.6,2594.2,0.69409879]
[1724088081052,0.1499,2594.6,2594.3,3.85457]
[1724088081245,0.1499,2594.6,2594.5,3.8543]
[1724088081700,0.1499,2594.6,2594.5,3.91628719]
[1724088082280,0.1499,2594.6,2594.5,19.39778719]
[1724088082446,0.1499,2594.6,2594.5,53.54348719]
[1724088082649,0.1499,2594.6,2594.5,52.06688391]
[1724088082897,0.1499,2594.6,2594.5,9.33518719]
[1724088083246,0.1499,2594.6,2594.5,2.48088719]
[1724088083651,0.1499,2594.6,2594.5,6.33518719]
[1724088084170,0.1499,2594.6,2594.5,0.06198719]
[1724088084569,0.1499,2594.6,2594.1,3.85482]
[1724088084570,4.00414,2594.6,2594.1,3.85482]
[1724088084770,4.00414,2594.6,2594.5,0.06150254]
[1724088084985,0.9481307,2594.6,2593.8,3.85532]
[1724088085187,3.85464,2594.3,2593.7,6.2743]
[1724088085372,4.00407,2594.6,2593.9,3.91657254]
[1724088085573,4.00407,2594.6,2594.5,2.4189]
[1724088085574,0.1499,2594.6,2594.5,2.4189]
[1724088085774,0.1499,2594.6,2594.5,10.1275]
[1724088086020,0.1499,2594.6,2594.5,9.2732]
[1724088086219,0.1499,2594.6,2594.5,14.50176654]
[1724088086761,0.1499,2594.6,2594.5,18.35606654]
[1724088086892,0.124267,2594.8,2594.5,10.64746654]
[1724088087095,7e-06,2594.8,2594.7,23.13194]
[1724088087294,0.1499,2595.1,2595.0,17.77614]
[1724088087597,2.382,2596.6,2595.9,3.85214]
[1724088087801,6.2332,2596.6,2595.9,3.85214]
[1724088087999,3.85145,2596.5,2595.8,10.06654]
[1724088088232,3.85145,2596.5,2595.8,6.29448]
[1724088088453,3.85098,2596.8,2596.2,3.85164]
[1724088088615,3.85024,2597.3,2596.5,3.85122]
[1724088088798,0.124267,2597.4,2596.3,7.7962]
[1724088089000,0.124267,2597.4,2597.3,3.85015]
[1724088089201,0.124267,2597.4,2597.2,3.85016]
[1724088089202,0.124267,2597.4,2597.2,3.85018]
[1724088089398,0.124267,2597.4,2596.7,3.0]
[1724088089399,0.124267,2597.4,2597.3,2.4422]
[1724088089637,0.124267,2597.4,2596.9,3.0]
[1724088089847,0.124267,2597.4,2595.8,4.481768]
[1724088089848,3.974267,2597.4,2597.3,0.05902814]
[1724088090046,14.5302937,2597.4,2597.3,0.05902814]
[1724088090248,3.85049,2597.1,2596.3,3.8516]
[1724088090446,4.3717237,2597.4,2597.3,0.05902814]
[1724088090651,8.2217537,2597.4,2597.3,0.05902814]
[1724088090856,3.85032,2597.2,2596.4,3.85148]
[1724088091351,3.85032,2597.2,2596.2,3.85168]
[1724088091352,3.85146,2596.5,2595.6,6.33045]
[1724088091503,3.85144,2596.5,2595.7,3.0]
[1724088091864,2.4278,2597.0,2595.6,2.4779]
[1724088091865,6.27845,2597.0,2595.6,2.4779]
[1724088092151,3.85185,2596.2,2595.6,2.4779]
[1724088092652,3.85312,2595.3,2594.6,3.85414]
[1724088092820,5.354,2595.9,2594.8,3.85375]
[1724088092999,0.5354,2595.8,2594.9,3.85368]
[1724088093197,0.5354,2595.8,2594.9,3.85358]
[1724088093448,0.5354,2595.8,2595.1,3.85335]
[1724088093653,5.354,2596.3,2595.5,3.85272]
[1724088093654,3.85171,2596.3,2595.5,3.85272]
[1724088093942,2.4963,2596.5,2595.3,3.85299]
[1724088093943,3.85195,2596.1,2595.3,3.85299]
[1724088094111,3.85195,2596.1,2594.9,2.2867]
[1724088094112,3.85232,2595.9,2595.1,3.85331]
[1724088094317,0.385195,2596.0,2595.3,3.8531]
[1724088094649,0.385195,2596.0,2595.0,3.0]
[1724088094650,3.85172,2596.3,2595.5,3.85281]
[1724088094857,3.8518,2596.2,2595.4,3.85283]
[1724088095146,3.8518,2596.2,2595.2,3.85321]
[1724088095147,3.85208,2596.0,2595.2,7.70629]
[1724088095357,3.85226,2595.9,2595.0,6.85351]
[1724088095507,7.70525,2595.7,2595.3,0.05847179]
[1724088095701,3.85271,2595.6,2595.0,6.85351]
[1724088095903,4.623135,2595.7,2595.4,0.05841291]
[1724088096216,4.623135,2595.7,2595.5,0.05841291]
[1724088096430,4.623135,2595.7,2595.0,3.0]
[1724088096608,4.623135,2595.7,2595.6,0.05841291]
[1724088096609,3.85261,2595.7,2595.6,0.05841291]
[1724088096814,3.85261,2595.7,2594.9,9.1404]
[1724088097118,3.85261,2595.7,2595.0,3.91197291]
[1724088097907,2.3933,2595.8,2595.0,0.05841291]
[1724088098106,3.85355,2595.1,2594.5,2.387]
[1724088098362,3.85326,2595.2,2595.1,0.05841291]
[1724088098506,3.85289,2595.5,2594.6,3.85414]
[1724088098706,3.85289,2595.5,2595.1,0.05860921]
[1724088099008,3.8529,2595.5,2594.6,3.85406]
[1724088099235,3.8532,2595.3,2594.6,3.85406]
[1724088099461,3.8532,2595.3,2594.7,3.91277937]
[1724088099657,3.8529,2595.5,2594.8,3.85383]
[1724088099805,4.62734,2595.7,2594.8,3.91367367]
[1724088100009,2.40567818,2596.2,2594.8,0.05994367]
[1724088100010,5.354,2595.9,2594.8,0.05994367]
[1724088100218,3.85321,2595.3,2594.8,0.05994367]
[1724088100420,7.70582,2595.5,2594.8,3.85383]
[1724088100753,3.85299,2595.4,2594.9,0.05994367]
[1724088100908,3.85314,2595.3,2594.9,0.05994367]
[1724088101119,3.85314,2595.3,2594.7,4.01538394]
[1724088101120,3.85341,2595.2,2594.7,4.01538394]
[1724088101320,0.770587,2595.4,2595.0,0.05994367]
[1724088101321,3.85341,2595.1,2595.0,0.05994367]
[1724088101520,11.48305,2595.5,2594.5,3.0]
[1724088101719,3.85341,2595.1,2595.0,0.05994367]
[1724088101946,3.85359,2595.0,2594.5,3.0]
[1724088102163,3.85326,2595.2,2594.5,7.539706]
[1724088102633,3.85313,2595.3,2594.6,3.85408]
[1724088102964,3.85275,2595.6,2595.0,3.85355]
[1724088103167,3.85275,2595.6,2594.8,3.85377]
[1724088103371,7.6302,2595.9,2594.8,0.612387]
[1724088103592,3.85338,2595.2,2594.5,3.0]
[1724088103861,3.85285,2595.5,2594.9,3.85363]
[1724088104078,7.6302,2595.9,2594.7,3.85391]
[1724088104079,3.85231,2595.9,2595.0,2.2701]
[1724088104239,3.85231,2595.9,2595.3,3.85311]
[1724088104571,3.85211,2596.0,2595.3,3.85307]
[1724088104860,3.85223,2595.9,2595.1,4.08028]
[1724088105067,3.85247,2595.8,2595.1,7.9336]
[1724088105234,3.85247,2595.8,2594.8,38.0]
[1724088105235,3.85243,2595.8,2594.8,3.0]
[1724088105433,3.85341,2595.2,2594.8,3.0]
[1724088105639,3.85368,2595.0,2594.6,5.2701]
[1724088105867,3.85371,2594.9,2594.2,2.2701]
[1724088106174,3.85371,2594.9,2594.3,3.85452]
[1724088106476,7.70756,2594.9,2594.3,4.466982]
[1724088106633,3.85371,2594.9,2594.3,0.612462]
[1724088107058,3.85371,2594.9,2594.3,4.467032]
[1724088107266,3.85371,2594.9,2594.4,1.0591752]
[1724088107466,3.8535,2595.1,2594.5,3.85421]